bitfinex-derivatives/quotes_SOLF0:USTF0_20260215
["timestamp","ask_amount","ask_price","bid_price","bid_amount"]
[1771168096523,0.73902988,87.562,87.454,3.88316151]
[1771168096729,159.8555,87.628,87.44,34.37]
[1771168096730,0.7812605,87.576,87.465,3.88316151]
[1771168097028,0.7812605,87.576,87.523,3.88316151]
[1771168097424,0.7812605,87.598,87.525,3.88316151]
[1771168097627,0.7812605,87.613,87.525,3.88316151]
[1771168097824,0.7812605,87.613,87.511,91.24]
[1771168097825,0.7812605,87.645,87.532,3.88316151]
[1771168098135,0.7812605,87.643,87.566,3.88316151]
[1771168098428,10.2794,87.602,87.53,3.88316151]
[1771168099224,0.87742905,87.601,87.536,3.88316151]
[1771168099827,10.2779,87.614,87.539,3.88316151]
[1771168100128,0.87742905,87.613,87.539,3.88316151]
[1771168101431,0.87742905,87.613,87.542,3.88316151]
[1771168101630,150.36,87.622,87.542,3.88316151]
[1771168102233,0.18480803,87.625,87.542,3.88316151]
[1771168102428,0.18480803,87.625,87.565,10.2836]
[1771168102737,0.18480803,87.625,87.566,3.88316151]
[1771168103337,0.24504998,87.612,87.542,3.88316151]
[1771168103738,0.24504998,87.598,87.527,3.88316151]
[1771168104233,0.24504998,87.578,87.502,3.88316151]
[1771168104932,0.24504998,87.578,87.514,3.88316151]
[1771168105537,20.5488,87.645,87.516,3.88316151]
[1771168105538,10.281,87.588,87.516,3.88316151]
[1771168105834,0.20800914,87.587,87.516,3.88316151]
[1771168106230,0.20800914,87.572,87.516,3.88316151]
[1771168106432,0.20800914,87.609,87.516,3.88316151]
[1771168106636,0.20800914,87.645,87.522,3.88316151]
[1771168106833,0.20800914,87.645,87.521,160.0493]
[1771168106834,0.20800914,87.645,87.574,3.88316151]
[1771168107435,0.23668942,87.628,87.562,10.284]
[1771168107731,0.23668942,87.628,87.558,3.88316151]
[1771168108135,0.23668942,87.652,87.558,3.88316151]
[1771168108830,1.35138774,87.626,87.561,3.88316151]
[1771168109233,1.35138774,87.622,87.561,3.88316151]
[1771168109841,1.35138774,87.653,87.561,3.88316151]
[1771168110644,1.35138774,87.62,87.561,3.88316151]
[1771168111442,1.34397819,87.614,87.545,3.88316151]
[1771168111938,1.34397819,87.614,87.546,10.2858]
[1771168112137,1.34397819,87.614,87.547,3.88316151]
[1771168113133,11.63651542,87.603,87.547,3.88316151]
[1771168113330,1.35731542,87.602,87.547,3.88316151]
[1771168114136,1.35731542,87.624,87.547,3.88316151]
[1771168114637,1.33756985,87.611,87.547,3.88316151]
[1771168115545,1.33756985,87.595,87.547,3.88316151]
[1771168115738,1.33756985,87.595,87.526,10.2882]
[1771168115937,1.33756985,87.595,87.5,91.14]
[1771168115938,1.33756985,87.595,87.527,3.88316151]
[1771168116142,1.33756985,87.638,87.527,3.88316151]
[1771168116541,34.37,87.639,87.545,3.88316151]
[1771168116542,1.33756985,87.611,87.545,3.88316151]
[1771168117335,1.4557389,87.607,87.528,3.88316151]
[1771168117740,1.4557389,87.607,87.53,10.2877]
[1771168117741,10.2802,87.595,87.53,10.2877]
[1771168117946,1.4557389,87.607,87.528,3.88316151]
[1771168118945,1.4557389,87.607,87.498,91.14]
[1771168118946,10.2789,87.606,87.541,3.88316151]
[1771168119340,91.14,87.628,87.544,3.88316151]
[1771168119341,10.2774,87.619,87.544,3.88316151]
[1771168119540,1.40597347,87.624,87.544,3.88316151]
[1771168120842,10.2786,87.609,87.549,3.88316151]
[1771168121044,1.40597347,87.624,87.549,3.88316151]
[1771168121840,10.2757,87.634,87.571,3.88316151]
[1771168122046,1.46833955,87.641,87.571,3.88316151]
[1771168123248,1.38802622,87.637,87.573,3.88316151]
[1771168123752,1.38802622,87.637,87.497,160.0932]
[1771168123753,1.38028497,87.608,87.548,3.58109964]
[1771168125743,1.40470424,87.626,87.55,3.58109964]
[1771168126643,1.40470424,87.626,87.562,3.58109964]
[1771168127447,10.2767,87.625,87.572,10.2828]
[1771168127649,10.2767,87.625,87.573,3.58109964]
[1771168128151,10.2756,87.634,87.575,3.58109964]
[1771168128743,10.2756,87.634,87.577,3.58109964]
[1771168129144,1.51099837,87.633,87.558,10.2845]
[1771168129353,1.51099837,87.633,87.559,3.58109964]
[1771168129846,10.2775,87.618,87.561,3.58109964]
[1771168130843,1.51099837,87.633,87.563,3.58109964]
[1771168131040,91.12,87.648,87.563,3.58109964]
[1771168131846,10.2751,87.639,87.58,3.58109964]
[1771168132554,10.276,87.631,87.583,3.58109964]
[1771168133151,1.5620931,87.636,87.567,3.58109964]
[1771168133152,10.2773,87.62,87.567,3.58109964]
[1771168133751,10.2773,87.62,87.569,3.58109964]
[1771168134953,10.2761,87.63,87.571,3.58109964]
[1771168135347,10.2761,87.63,87.581,10.2818]
[1771168135547,1.5620931,87.636,87.582,3.58109964]
[1771168137146,91.12,87.648,87.584,3.58109964]
[1771168137147,10.2755,87.635,87.584,3.58109964]
[1771168138750,1.78311912,87.631,87.564,3.58109964]
[1771168139651,1.78311912,87.631,87.529,20.5758]
[1771168139652,1.78311912,87.631,87.566,3.58109964]
[1771168139951,1.78311912,87.646,87.566,3.58109964]
[1771168140355,1.78311912,87.646,87.595,3.58109964]
[1771168140555,1.78311912,87.662,87.595,3.58109964]
[1771168141755,10.273,87.657,87.609,3.58109964]
[1771168142852,10.2742,87.647,87.609,3.58109964]
[1771168143161,10.2742,87.647,87.594,3.58109964]
[1771168143657,10.2742,87.647,87.597,3.58109964]
[1771168143953,10.62675308,87.68,87.597,3.58109964]
[1771168144156,1.77989711,87.679,87.597,3.58109964]
[1771168144560,10.2726,87.66,87.609,3.58109964]
[1771168144854,1.7723878,87.659,87.567,3.58109964]
[1771168145056,1.7723878,87.653,87.598,10.2797]
[1771168145258,1.7723878,87.653,87.597,3.58109964]
[1771168146756,10.2741,87.647,87.597,13.86099964]
[1771168146956,10.2741,87.647,87.598,3.58109964]
[1771168147857,10.2741,87.647,87.6,3.58109964]
[1771168148658,10.2737,87.651,87.6,3.58109964]
[1771168149867,10.2737,87.651,87.602,3.58109964]
[1771168152767,10.62675308,87.676,87.584,3.58109964]
[1771168152768,1.92826064,87.643,87.584,3.58109964]
[1771168154063,1.94523242,87.623,87.556,3.88008061]
[1771168154566,10.2774,87.619,87.566,3.88008061]
[1771168154870,1.93778452,87.618,87.566,3.88008061]
[1771168155566,10.278,87.614,87.566,3.88008061]
[1771168155867,1.93778452,87.618,87.566,3.88008061]
[1771168156368,10.2778,87.616,87.566,3.88008061]
[1771168156761,12.22644626,87.616,87.566,3.88008061]
[1771168157666,10.2783,87.612,87.566,3.88008061]
[1771168158576,1.94864626,87.608,87.556,10.2847]
[1771168159070,1.94864626,87.608,87.557,3.88008061]
[1771168159666,10.2793,87.603,87.557,3.88008061]
[1771168160970,10.2797,87.599,87.557,3.88008061]
[1771168161177,1.91522956,87.598,87.54,3.88008061]
[1771168161977,12.19672956,87.584,87.54,3.88008061]
[1771168162174,1.91522956,87.583,87.529,10.2878]
[1771168162771,1.91522956,87.583,87.53,3.88008061]
[1771168163775,10.2822,87.578,87.53,3.88008061]
[1771168164479,1.91522956,87.583,87.533,3.88008061]
[1771168165380,1.91522956,87.583,87.535,10.2872]
[1771168165579,1.91522956,87.583,87.533,3.88008061]
[1771168165580,12.28109053,87.582,87.533,3.88008061]
[1771168165776,1.99939053,87.581,87.533,3.88008061]
[1771168166375,12.27939053,87.597,87.541,10.2865]
[1771168166574,1.99939053,87.597,87.542,3.88008061]
[1771168167279,2.09517552,87.588,87.542,3.88008061]
[1771168168174,2.09517552,87.58,87.525,3.88008061]
[1771168169183,2.28695118,87.609,87.536,3.88008061]
[1771168170784,10.2795,87.601,87.538,3.88008061]
[1771168171487,10.2804,87.593,87.54,3.88008061]
[1771168172984,10.2814,87.585,87.54,3.88008061]
[1771168174181,10.2804,87.593,87.54,3.88008061]
[1771168174882,10.2815,87.585,87.54,3.88008061]
[1771168175084,10.2815,87.585,87.49,34.27]
[1771168175085,2.32532798,87.584,87.521,3.88008061]
[1771168176789,2.3754783,87.578,87.521,3.88008061]
[1771168177887,10.2826,87.575,87.523,3.88008061]
[1771168178583,10.2826,87.575,87.522,10.2887]
[1771168178584,10.2826,87.575,87.526,3.88008061]
[1771168178785,10.2813,87.586,87.526,3.88008061]
[1771168179889,10.2813,87.586,87.535,3.88008061]
[1771168180289,12.65497134,87.582,87.535,3.88008061]
[1771168184101,2.32728643,87.597,87.537,3.95342028]
[1771168184501,2.32728643,87.597,87.501,48.09018785]
[1771168184502,2.32728643,87.597,87.543,3.95342028]
[1771168185201,10.2788,87.607,87.557,3.95342028]
[1771168186700,10.2788,87.607,87.558,10.2844]
[1771168186902,10.2788,87.607,87.559,3.95342028]
[1771168187603,10.2791,87.605,87.559,3.95342028]
[1771168187802,2.08763774,87.604,87.559,3.95342028]
[1771168188200,2.08763774,87.602,87.559,14.23782028]
[1771168189004,2.08763774,87.602,87.559,10.2844]
[1771168191402,2.08763774,87.602,87.559,14.23782028]
[1771168193507,2.08763774,87.602,87.56,3.95342028]
[1771168194407,1.99336122,87.618,87.57,3.95342028]
[1771168195802,1.99685179,87.616,87.557,3.95342028]
[1771168197698,2.01367194,87.597,87.543,3.95342028]
[1771168197999,2.01367194,87.597,87.529,3.95342028]
[1771168198400,2.01367194,87.602,87.547,3.95342028]
[1771168198598,2.01367194,87.602,87.513,3.95342028]
[1771168199712,1.99773259,87.601,87.54,3.95342028]
[1771168200099,10.2796,87.6,87.543,10.2862]
[1771168200305,1.99773259,87.625,87.544,3.95342028]
[1771168200607,1.99773259,87.648,87.552,3.95342028]
[1771168200805,1.99773259,87.648,87.592,10.2805]
[1771168201106,1.99773259,87.648,87.592,14.23392028]
[1771168201304,2.07885847,87.638,87.592,3.95342028]
[1771168201700,2.07885847,87.66,87.592,3.95342028]
[1771168201902,2.07885847,87.644,87.592,3.95342028]
[1771168203312,2.2706143,87.641,87.592,3.95342028]
[1771168203708,2.2706143,87.641,87.577,3.95342028]
[1771168203908,2.2706143,87.637,87.577,3.95342028]
[1771168204614,2.2706143,87.629,87.562,3.95342028]
[1771168205918,2.22156926,87.627,87.565,3.95342028]
[1771168206512,2.22156926,87.614,87.565,3.95342028]
[1771168207519,2.19365584,87.611,87.554,3.95342028]
[1771168210018,2.19085936,87.603,87.554,3.95342028]
[1771168211723,2.20300946,87.6,87.554,3.95342028]
[1771168213317,2.22577941,87.593,87.537,3.947045]
[1771168214721,10.2822,87.578,87.537,3.947045]
[1771168218424,12.53057173,87.578,87.537,3.947045]
[1771168218723,12.54088039,87.576,87.537,3.947045]
[1771168219316,10.283,87.571,87.522,3.947045]
[1771168219513,2.25848039,87.571,87.522,3.947045]
[1771168220820,10.2839,87.564,87.522,3.947045]
[1771168224928,2.28028495,87.596,87.508,3.947045]
[1771168225635,2.28028495,87.596,87.534,3.947045]
[1771168226431,2.28028495,87.596,87.544,3.947045]
[1771168226834,10.2821,87.579,87.544,3.947045]
[1771168227131,10.2821,87.579,87.528,3.947045]
[1771168227825,10.283,87.571,87.528,3.947045]
[1771168232638,10.282,87.58,87.53,3.947045]
[1771168233337,2.70666492,87.582,87.533,3.947045]
[1771168234443,2.60219528,87.618,87.543,3.947045]
[1771168234634,2.60219528,87.628,87.543,3.947045]
[1771168234933,2.60219528,87.628,87.544,3.947045]
[1771168235534,2.60219528,87.628,87.531,20.7364084]
[1771168235535,176.82,87.657,87.581,10.2818]
[1771168235734,176.82,87.657,87.582,3.947045]
[1771168235735,2.60118303,87.643,87.582,3.947045]
[1771168236136,2.60118303,87.639,87.582,3.947045]
[1771168236931,10.2759,87.632,87.583,14.228545]
[1771168237742,13.04641994,87.632,87.583,14.228545]
[1771168237944,2.77051994,87.631,87.583,14.228545]
[1771168238343,2.77051994,87.628,87.574,10.2826]
[1771168238540,2.77051994,87.628,87.569,3.947045]
[1771168238847,2.67725129,87.626,87.569,3.947045]
[1771168240741,10.2772,87.621,87.571,10.2829]
[1771168241648,2.67725129,87.626,87.571,14.229945]
[1771168241846,179.78960165,87.64,87.575,3.947045]
[1771168242444,190.06450165,87.64,87.585,3.947045]
[1771168242646,2.65658602,87.639,87.585,3.947045]
[1771168243048,2.65658602,87.654,87.585,3.947045]
[1771168243544,2.65737751,87.634,87.585,3.947045]
[1771168243946,2.65737751,87.634,87.541,3.74939242]
[1771168244346,2.65753866,87.631,87.571,10.2829]
[1771168245650,2.65753866,87.631,87.572,3.74939242]
[1771168245846,12.96317232,87.626,87.572,3.74939242]
[1771168246447,10.2774,87.619,87.572,3.74939242]
[1771168248750,2.72648585,87.64,87.576,3.74939242]
[1771168249158,302.75511831,87.656,87.576,3.74939242]
[1771168249542,302.75511831,87.656,87.55,20.5709]
[1771168249543,2.72648585,87.655,87.606,3.74939242]
[1771168249850,10.2728,87.658,87.606,3.74939242]
[1771168250852,10.2728,87.658,87.61,3.74939242]
[1771168251847,2.73656256,87.657,87.595,3.74939242]
[1771168252849,10.2743,87.645,87.597,3.74939242]
[1771168254053,10.2733,87.654,87.6,3.74939242]
[1771168254454,10.2733,87.654,87.561,13.82018785]
[1771168254455,10.2733,87.654,87.602,3.74939242]
[1771168254658,10.2742,87.646,87.602,3.74939242]
[1771168255655,10.273,87.656,87.602,3.74939242]
[1771168255856,2.73656256,87.657,87.602,3.74939242]
[1771168256759,2.73656256,87.657,87.611,14.02759242]
[1771168257149,2.73656256,87.657,87.611,3.74939242]
[1771168257650,2.70542867,87.655,87.611,3.74939242]
[1771168259963,2.60437719,87.651,87.599,10.2796]
[1771168260363,2.60437719,87.651,87.582,3.74939242]
[1771168260563,2.60437719,87.633,87.582,3.74939242]
[1771168261065,2.60437719,87.633,87.541,3.74939242]
[1771168261264,2.5932375,87.631,87.582,10.2816]
[1771168262162,10.2758,87.633,87.588,3.74939242]
[1771168263261,2.55935044,87.63,87.579,10.282]
[1771168263863,2.55935044,87.628,87.567,10.2834]
[1771168264068,2.55935044,87.628,87.568,3.74939242]
[1771168264964,2.54869137,87.615,87.553,3.74939242]
[1771168266571,12.82659137,87.615,87.568,3.74939242]
[1771168267267,10.2779,87.615,87.568,3.74939242]
[1771168267861,10.2779,87.615,87.57,3.74939242]
[1771168271172,2.28610339,87.63,87.576,10.2823]
[1771168271173,10.2763,87.628,87.576,10.2823]
[1771168271372,10.2763,87.628,87.577,3.74939242]
[1771168271875,10.2763,87.628,87.579,3.74939242]
[1771168273468,2.21795272,87.627,87.579,3.74939242]
[1771168275778,10.2763,87.628,87.579,3.74939242]
[1771168276076,10.2763,87.628,87.582,3.67614195]
[1771168277671,12.56460912,87.628,87.582,3.67614195]
[1771168278182,12.56460912,87.628,87.583,13.95764195]
[1771168279074,92.84,87.637,87.591,3.67614195]
[1771168279272,10.275,87.639,87.591,3.67614195]
[1771168284273,10.2734,87.654,87.597,10.2799]
[1771168284477,2.25894331,87.658,87.598,3.67614195]
[1771168284985,2.21409851,87.656,87.598,13.95584195]
[1771168285577,2.21409851,87.656,87.599,3.67614195]
[1771168285779,2.21409851,87.653,87.599,3.67614195]
[1771168286888,2.20612645,87.648,87.599,3.67614195]
[1771168287587,2.20612645,87.646,87.599,3.67614195]
[1771168287788,2.20612645,87.646,87.582,13.82018785]
[1771168287789,2.20612645,87.646,87.582,3.67614195]
[1771168288285,2.20612645,87.635,87.582,3.67614195]
[1771168289382,2.21424122,87.619,87.566,3.67614195]
[1771168289882,34.27,87.649,87.554,13.82018785]
[1771168289883,2.21424122,87.607,87.554,13.82018785]
[1771168290085,2.21424122,87.607,87.555,3.67614195]
[1771168291183,2.20191131,87.596,87.543,10.2862]
[1771168291581,2.20191131,87.596,87.543,13.96234195]
[1771168292788,2.12002496,87.594,87.543,3.67614195]
[1771168293291,12.40092496,87.59,87.543,3.67614195]
[1771168294392,2.12002496,87.587,87.52,3.67614195]
[1771168295892,10.2821,87.579,87.521,3.67614195]
[1771168296485,2.12002496,87.587,87.524,3.67614195]
[1771168296987,2.28819295,87.601,87.524,3.67614195]
[1771168297182,2.28819295,87.59,87.536,3.67614195]
[1771168297588,10.28,87.597,87.538,3.67614195]
[1771168298788,12.52787823,87.594,87.543,3.67614195]
[1771168300790,10.2805,87.592,87.543,3.67614195]
[1771168301193,10.2794,87.602,87.545,3.67614195]
[1771168301490,2.22854283,87.601,87.545,3.67614195]
[1771168301893,2.22854283,87.587,87.528,10.2879]
[1771168302096,2.22854283,87.587,87.529,3.67614195]
[1771168302490,34.27,87.621,87.529,3.67614195]
[1771168302491,2.22854283,87.62,87.529,3.67614195]
[1771168303197,2.26755252,87.603,87.542,3.67614195]
[1771168303796,10.2781,87.613,87.552,3.92906134]
[1771168304394,2.2692556,87.613,87.556,3.92906134]
[1771168304696,10.2768,87.624,87.556,3.92906134]
[1771168305095,10.2768,87.624,87.543,13.82018785]
[1771168305096,2.3486792,87.619,87.568,3.92906134]
[1771168305299,2.3486792,87.619,87.542,3.92906134]
[1771168306097,2.3486792,87.606,87.544,3.92906134]
[1771168307298,12.671909,87.603,87.549,3.92906134]
[1771168307602,2.392609,87.602,87.549,3.92906134]
[1771168308704,10.28,87.597,87.549,3.92906134]
[1771168310303,12.70405721,87.597,87.549,3.92906134]
[1771168310706,2.42211093,87.596,87.549,3.92906134]
[1771168312307,2.42211093,87.594,87.543,10.2862]
[1771168313603,2.42211093,87.594,87.543,14.21526134]
[1771168314403,2.42211093,87.594,87.547,3.92906134]
[1771168314607,10.2793,87.603,87.547,3.92906134]
[1771168314999,10.2793,87.603,87.511,91.12]
[1771168315000,10.2771,87.621,87.571,3.92906134]
[1771168315203,2.42525047,87.629,87.571,3.92906134]
[1771168316305,10.2774,87.619,87.573,3.92906134]
[1771168318312,2.42525047,87.629,87.53,91.12]
[1771168318313,2.39343048,87.628,87.575,3.92906134]
[1771168318613,10.2763,87.629,87.575,3.92906134]
[1771168319016,2.39343048,87.642,87.579,3.92906134]
[1771168319715,2.39343048,87.642,87.595,3.92906134]
[1771168320711,10.2754,87.636,87.595,3.92906134]
[1771168321312,2.40769199,87.632,87.582,3.92906134]
[1771168321515,2.40769199,87.632,87.568,3.92906134]
[1771168322010,2.40769199,87.632,87.521,54.8476]
[1771168322011,2.40769199,87.607,87.553,3.92906134]
[1771168323729,2.40769199,87.607,87.555,3.92906134]
[1771168324427,10.2801,87.596,87.555,3.92906134]
[1771168324628,2.40769199,87.607,87.555,3.92906134]
[1771168325722,2.47700222,87.604,87.555,3.92906134]
[1771168326522,10.2782,87.612,87.556,3.92906134]
[1771168327730,10.2782,87.612,87.559,3.92906134]
[1771168328524,2.48755416,87.608,87.558,10.2844]
[1771168328829,2.48755416,87.608,87.533,3.92906134]
[1771168329730,34.27,87.626,87.534,3.92906134]
[1771168329731,10.2808,87.59,87.534,3.92906134]
[1771168330229,10.2813,87.586,87.534,3.92906134]
[1771168331127,2.29204448,87.574,87.518,3.92906134]
[1771168332524,2.29204448,87.564,87.518,3.92906134]
[1771168334023,2.26286405,87.594,87.518,3.92906134]
[1771168334427,10.283,87.571,87.518,3.92906134]
[1771168335329,10.2815,87.584,87.53,3.68338183]
[1771168336224,10.2804,87.593,87.532,3.68338183]
[1771168336628,2.21712237,87.609,87.532,3.68338183]
[1771168336938,2.16903621,87.642,87.548,3.68338183]
[1771168337333,2.16903621,87.636,87.548,3.68338183]
[1771168337637,2.16903621,87.605,87.548,3.68338183]
[1771168338029,10.28,87.597,87.548,3.68338183]
[1771168338638,10.2807,87.591,87.548,3.68338183]
[1771168338833,12.37232608,87.591,87.548,3.68338183]
[1771168339638,2.09162608,87.591,87.548,3.68338183]
[1771168341136,2.03492135,87.607,87.548,3.68338183]
[1771168342838,2.03492135,87.607,87.552,3.68338183]
[1771168343738,2.03492135,87.607,87.556,3.68338183]
[1771168344842,2.03492135,87.607,87.558,10.2845]
[1771168345746,1.82409122,87.599,87.542,10.2864]
[1771168346341,12.10459122,87.592,87.542,10.2864]
[1771168346540,1.82409122,87.591,87.542,10.2864]
[1771168346735,1.82409122,87.591,87.538,3.68338183]
[1771168346941,10.2827,87.574,87.522,3.68338183]
[1771168347141,1.75757789,87.606,87.522,3.68338183]
[1771168347534,1.75757789,87.606,87.532,3.68338183]
[1771168347740,1.75757789,87.606,87.533,3.68338183]
[1771168348239,1.75757789,87.606,87.554,3.68338183]
[1771168349640,1.75757789,87.606,87.561,3.68338183]
[1771168349844,10.2773,87.62,87.561,3.68338183]
[1771168350040,1.7852742,87.619,87.561,3.68338183]
[1771168350941,10.2766,87.626,87.574,3.68338183]
[1771168351250,1.81622987,87.634,87.574,3.68338183]
[1771168352142,10.2759,87.632,87.577,3.68338183]
[1771168353446,10.2759,87.632,87.579,3.68338183]
[1771168354244,1.8076542,87.631,87.579,3.68338183]
[1771168357046,1.79216869,87.623,87.566,10.2835]
[1771168357554,1.79216869,87.623,87.567,3.68338183]
[1771168357744,1.79216869,87.617,87.567,3.68338183]
[1771168357945,1.79216869,87.617,87.557,10.2846]
[1771168358751,1.77631483,87.603,87.553,3.68338183]
[1771168360148,1.77631483,87.603,87.513,20.7364084]
[1771168360149,1.77631483,87.601,87.539,3.68338183]
[1771168361154,10.2818,87.581,87.539,3.68338183]
[1771168363957,10.2822,87.578,87.539,3.68338183]
[1771168364154,1.74416743,87.58,87.512,3.71033577]
[1771168364653,10.2835,87.567,87.517,3.71033577]
[1771168367557,1.71899546,87.598,87.528,3.71033577]
[1771168368358,1.71899546,87.588,87.53,3.71033577]
[1771168369862,1.74445026,87.584,87.53,3.71033577]
[1771168370659,34.27,87.615,87.53,3.71033577]
[1771168370660,1.74445026,87.582,87.531,10.2877]
[1771168371862,1.74445026,87.582,87.534,3.71033577]
[1771168372768,1.74445026,87.582,87.536,10.287]
[1771168373770,1.89701159,87.579,87.506,3.71033577]
[1771168374868,12.18521482,87.571,87.517,3.71033577]
[1771168375366,1.90211482,87.57,87.517,3.71033577]
[1771168375758,1.90211482,87.57,87.521,10.2888]
[1771168376668,10.2833,87.569,87.521,10.2888]
[1771168377670,1.88868408,87.568,87.522,3.71033577]
[1771168378773,1.88868408,87.588,87.525,3.71033577]
[1771168379769,10.2813,87.586,87.541,3.71033577]
[1771168382574,1.88868408,87.588,87.541,3.71033577]
[1771168385073,1.88868408,87.588,87.543,10.2862]
[1771168385273,1.88868408,87.588,87.544,3.71033577]
[1771168385473,10.2803,87.594,87.544,3.71033577]
[1771168386780,10.2803,87.594,87.546,3.71033577]
[1771168388373,1.78411387,87.602,87.492,91.14]
[1771168388374,1.78411387,87.602,87.55,3.71033577]
[1771168389782,10.2781,87.613,87.56,3.71033577]
[1771168389984,12.0619223,87.613,87.56,3.71033577]
[1771168392183,34.27,87.638,87.56,3.71033577]
[1771168392184,1.76270582,87.607,87.56,3.71033577]
[1771168392580,1.76270582,87.607,87.559,10.2844]
[1771168392581,1.76270582,87.597,87.547,13.99603577]
[1771168393086,1.76270582,87.597,87.548,3.71033577]
[1771168393279,10.2801,87.596,87.551,3.71033577]
[1771168400891,10.2801,87.596,87.553,10.285]
[1771168401593,10.2801,87.596,87.554,3.89841939]
[1771168401891,1.79569453,87.595,87.554,3.89841939]
[1771168402485,1.79569453,87.595,87.553,10.285]
[1771168402686,1.79569453,87.59,87.542,14.18471939]
[1771168402888,1.79569453,87.59,87.543,3.89841939]
[1771168403787,1.79569453,87.59,87.544,14.18451939]
[1771168403984,1.78360063,87.603,87.545,3.89841939]
[1771168404189,1.78360063,87.61,87.545,3.89841939]
[1771168404887,104.9,87.646,87.57,3.89841939]
[1771168404888,1.81082602,87.624,87.57,3.89841939]
[1771168405890,1.81082602,87.641,87.592,3.89841939]
[1771168406787,10.2749,87.64,87.594,3.89841939]
[1771168407994,2.07448056,87.639,87.594,3.89841939]
[1771168410091,2.03130979,87.637,87.594,3.89841939]
[1771168410394,2.03130979,87.637,87.585,3.89841939]
[1771168410791,2.03856939,87.628,87.575,10.2825]
[1771168411883,2.03856939,87.619,87.575,10.2825]
[1771168412490,10.2775,87.618,87.571,3.89841939]
[1771168412897,1.81712356,87.617,87.571,3.89841939]
[1771168413196,1.81712356,87.615,87.571,3.89841939]
[1771168413387,1.81712356,87.615,87.556,3.89841939]
[1771168413786,1.81712356,87.609,87.556,3.89841939]
[1771168414499,1.81712356,87.606,87.556,3.89841939]
[1771168415390,10.2781,87.613,87.568,10.2833]
[1771168415598,10.2781,87.613,87.569,3.89841939]
[1771168416397,1.93823388,87.622,87.569,3.89841939]
[1771168416398,10.2772,87.621,87.569,3.89841939]
[1771168416800,1.80839775,87.644,87.569,3.89841939]
[1771168417696,10.2761,87.63,87.578,3.89841939]
[1771168418097,1.80839775,87.629,87.578,3.89841939]
[1771168418701,10.2764,87.627,87.581,3.89841939]
[1771168419697,10.2751,87.638,87.587,3.89841939]
[1771168419899,1.85373461,87.648,87.587,3.89841939]
[1771168420200,12.12783461,87.648,87.59,3.89841939]
[1771168420398,1.85373461,87.647,87.566,3.89841939]
[1771168421198,1.90974332,87.626,87.568,3.89841939]
[1771168422804,10.2766,87.625,87.572,3.89841939]
[1771168423800,134.65983943,87.651,87.574,3.87254084]
[1771168424106,1.69983943,87.651,87.574,3.87254084]
[1771168424605,10.2743,87.646,87.587,3.87254084]
[1771168425705,10.2743,87.646,87.588,10.2809]
[1771168425902,10.2743,87.646,87.589,3.87254084]
[1771168426698,10.2743,87.646,87.592,10.2804]
[1771168426904,10.2743,87.646,87.593,3.87254084]
[1771168427809,10.2743,87.646,87.595,3.87254084]
[1771168428401,10.2743,87.646,87.596,10.28]
[1771168428606,1.69983943,87.651,87.597,3.87254084]
[1771168430610,1.69983943,87.651,87.6,3.87254084]
[1771168431812,1.69983943,87.651,87.604,3.87254084]
[1771168433417,10.2731,87.655,87.608,3.87254084]
[1771168433711,1.73748025,87.654,87.608,3.87254084]
[1771168433919,10.2737,87.651,87.608,3.87254084]
[1771168437718,10.2726,87.66,87.608,3.87254084]
[1771168438510,1.72345315,87.667,87.61,3.87254084]
[1771168439212,1.73329818,87.665,87.617,3.87254084]
[1771168440517,10.2723,87.662,87.617,3.87254084]
[1771168441014,44.90616464,87.696,87.617,3.87254084]
[1771168441015,10.2732,87.655,87.617,3.87254084]
[1771168443415,1.69764445,87.661,87.617,3.87254084]
[1771168444418,10.272,87.665,87.617,3.87254084]
[1771168444616,10.272,87.665,87.618,3.87254084]
[1771168446716,10.2728,87.658,87.618,3.87254084]
[1771168447820,10.2736,87.651,87.618,3.87254084]
[1771168449716,1.52080708,87.648,87.602,3.87254084]
[1771168450623,1.52080708,87.636,87.574,3.87254084]
[1771168451728,1.51769541,87.613,87.555,3.87254084]
[1771168452529,1.51769541,87.602,87.555,3.87254084]
[1771168457438,10.2797,87.6,87.555,3.87254084]
[1771168461142,1.3259699,87.596,87.555,3.87254084]
[1771168461632,34.27,87.635,87.54,10.2866]
[1771168461633,1.3259699,87.594,87.542,3.67745424]
[1771168462835,10.2812,87.587,87.542,3.67745424]
[1771168463038,11.45970285,87.587,87.542,3.67745424]
[1771168463541,1.17850285,87.584,87.542,3.67745424]
[1771168465843,1.17850285,87.584,87.543,10.2862]
[1771168466746,1.17850285,87.584,87.542,3.67745424]
[1771168468241,10.2804,87.593,87.542,3.67745424]
[1771168468644,10.2811,87.588,87.542,3.67745424]
[1771168468944,1.09179958,87.592,87.542,3.67745424]